bitfinex/quotes_SOLUSD_20250612
["timestamp","ask_amount","ask_price","bid_price","bid_amount"]
[1749692001705,23.01611091,159.7,159.66,23.01611091]
[1749692002915,6.3078,159.74,159.64,52.66]
[1749692002916,23.01611091,159.73,159.68,23.01611091]
[1749692003086,23.01611091,159.73,159.68,49.65611091]
[1749692003506,23.01611091,159.75,159.71,23.01611091]
[1749692003715,23.01611091,159.75,159.7,49.01611091]
[1749692004023,1.5138,159.76,159.7,49.01611091]
[1749692004024,23.01611091,159.72,159.7,26.0]
[1749692004606,1.5138,159.76,159.7,26.0]
[1749692004789,23.01611091,159.71,159.7,26.0]
[1749692004986,23.01611091,159.72,159.7,26.0]
[1749692005402,1.5138,159.76,159.69,6.0]
[1749692005403,23.01611091,159.71,159.69,6.0]
[1749692006188,23.01611091,159.7,159.69,6.0]
[1749692006394,23.01611091,159.71,159.69,6.0]
[1749692006999,7.77319528,159.76,159.69,6.0]
[1749692007000,23.01611091,159.7,159.69,6.0]
[1749692008524,1.5138,159.76,159.69,6.0]
[1749692008722,23.01611091,159.71,159.69,6.0]
[1749692008897,23.01611091,159.7,159.69,6.0]
[1749692009096,26.0,159.75,159.69,6.0]
[1749692009097,6.5725,159.71,159.69,6.0]
[1749692009298,23.01611091,159.7,159.69,6.0]
[1749692013021,6.5725,159.71,159.69,6.0]
[1749692013222,23.01611091,159.7,159.69,6.0]
[1749692013410,46.03222182,159.7,159.69,6.0]
[1749692013734,6.5067,159.68,159.59,6.0]
[1749692013936,23.01611091,159.61,159.59,6.0]
[1749692014236,23.01611091,159.6,159.59,6.0]
[1749692017228,29.09751091,159.6,159.56,3.95693469]
[1749692017436,23.01611091,159.57,159.56,3.95693469]
[1749692017913,6.0814,159.6,159.56,3.95693469]
[1749692018117,23.01611091,159.57,159.56,3.95693469]
[1749692018535,6.0814,159.6,159.56,3.95693469]
[1749692018830,23.01611091,159.57,159.56,3.95693469]
[1749692021415,6.0814,159.6,159.56,3.95693469]
[1749692021723,23.01611091,159.57,159.56,3.95693469]
[1749692022325,31.11871091,159.57,159.44,5.79856529]
[1749692022529,31.11871091,159.57,159.41,13.91841761]
[1749692022530,23.01611091,159.47,159.43,23.01611091]
[1749692022708,23.01611091,159.47,159.41,37.93721484]
[1749692022709,23.01611091,159.47,159.44,26.0]
[1749692022901,23.01611091,159.5,159.41,6.14]
[1749692023134,23.01611091,159.42,159.41,6.14]
[1749692023509,23.01611091,159.43,159.41,6.14]
[1749692023701,23.01611091,159.44,159.41,6.14]
[1749692023907,23.01611091,159.45,159.41,6.14]
[1749692024429,23.01611091,159.44,159.41,6.14]
[1749692024640,23.01611091,159.43,159.41,6.14]
[1749692024940,6.27037873,159.48,159.41,6.14]
[1749692025109,6.27037873,159.48,159.37,27.5849]
[1749692025110,23.01611091,159.42,159.37,27.5849]
[1749692025431,23.01611091,159.42,159.38,6.14]
[1749692025611,23.01611091,159.42,159.38,29.15611091]
[1749692025810,23.01611091,159.41,159.38,6.14]
[1749692026237,12.73238428,159.49,159.38,6.14]
[1749692026238,1.504,159.48,159.38,6.14]
[1749692026434,23.01611091,159.41,159.38,6.14]
[1749692026910,12.73238428,159.49,159.41,0.28432314]
[1749692026911,6.4623,159.49,159.41,0.28432314]
[1749692027113,6.0209,159.53,159.45,23.01611091]
[1749692027325,6.0209,159.53,159.41,45.97613357]
[1749692027326,6.0209,159.53,159.44,23.01611091]
[1749692027640,6.0209,159.53,159.43,0.14216157]
[1749692027813,23.01611091,159.49,159.45,0.28432314]
[1749692028134,23.01611091,159.48,159.44,0.28432314]
[1749692028543,23.01611091,159.49,159.44,23.30043405]
[1749692029241,6.0209,159.53,159.44,0.28432314]
[1749692029421,6.0209,159.53,159.45,23.01611091]
[1749692029618,23.01611091,159.49,159.44,0.28432314]
[1749692029843,23.01611091,159.47,159.42,23.15827248]
[1749692030015,23.01611091,159.47,159.43,0.28432314]
[1749692031033,23.01611091,159.47,159.43,23.30043405]
[1749692031235,12.28934968,159.53,159.43,23.30043405]
[1749692031441,23.01611091,159.48,159.43,23.30043405]
[1749692031617,6.0209,159.53,159.43,23.30043405]
[1749692031822,23.01611091,159.47,159.43,23.30043405]
[1749692032033,12.28933068,159.53,159.43,23.30043405]
[1749692032226,23.01611091,159.47,159.43,0.28432314]
[1749692032424,23.01611091,159.46,159.42,0.28432314]
[1749692032831,23.01611091,159.47,159.42,23.30043405]
[1749692033356,23.01611091,159.48,159.43,23.01611091]
[1749692033514,6.0209,159.53,159.45,23.01611091]
[1749692033717,23.01611091,159.5,159.45,23.01611091]
[1749692033913,23.01611091,159.5,159.46,0.28432314]
[1749692034127,6.0209,159.53,159.43,44.933972]
[1749692034128,23.01611091,159.52,159.47,23.01611091]
[1749692034346,23.01611091,159.51,159.47,23.01611091]
[1749692034518,23.01611091,159.51,159.46,23.01611091]
[1749692035044,23.01611091,159.5,159.46,0.28432314]
[1749692035253,23.01611091,159.48,159.43,44.64964886]
[1749692035445,23.01611091,159.47,159.44,0.28432314]
[1749692036048,6.0209,159.53,159.44,0.28432314]
[1749692036216,23.01611091,159.48,159.44,0.28432314]
[1749692037845,23.01611091,159.49,159.44,23.30043405]
[1749692038331,23.01611091,159.48,159.44,0.28432314]
[1749692038533,6.0209,159.53,159.45,23.01611091]
[1749692038731,23.01611091,159.5,159.45,23.01611091]
[1749692038920,6.0209,159.53,159.46,23.01611091]
[1749692038921,23.01611091,159.51,159.46,23.01611091]
[1749692039123,6.0209,159.53,159.44,0.42648471]
[1749692039326,23.01611091,159.5,159.46,23.01611091]
[1749692039746,6.0209,159.53,159.46,23.01611091]
[1749692039935,23.01611091,159.5,159.46,23.01611091]
[1749692040248,6.0209,159.53,159.46,23.01611091]
[1749692040453,6.0209,159.53,159.44,0.42648471]
[1749692040745,23.01611091,159.51,159.46,23.01611091]
[1749692040935,6.0209,159.53,159.46,23.01611091]
[1749692041127,23.01611091,159.51,159.46,23.01611091]
[1749692041331,23.01611091,159.51,159.47,23.01611091]
[1749692042055,23.01611091,159.51,159.47,0.28432314]
[1749692042838,23.01611091,159.5,159.47,0.28432314]
[1749692043355,23.01611091,159.48,159.4,8.2235]
[1749692043645,1.504,159.56,159.47,23.01611091]
[1749692043821,23.01611091,159.52,159.48,23.01611091]
[1749692044024,23.01611091,159.52,159.46,0.14216157]
[1749692044251,1.504,159.56,159.48,0.28432314]
[1749692044252,7.77123877,159.56,159.48,0.28432314]
[1749692044449,7.77123877,159.56,159.46,0.14216157]
[1749692044450,23.01611091,159.5,159.46,23.01611091]
[1749692044630,23.01611091,159.49,159.44,18.64964886]
[1749692044942,6.2676277,159.55,159.43,49.01611091]
[1749692044943,23.01611091,159.48,159.43,49.01611091]
[1749692045144,23.01611091,159.48,159.44,0.28432314]
[1749692045562,23.01611091,159.49,159.44,18.933972]
[1749692045764,23.01611091,159.49,159.44,41.95008291]
[1749692046455,32.2681997,159.54,159.44,41.95008291]
[1749692046668,23.01611091,159.49,159.44,41.95008291]
[1749692047333,23.01611091,159.48,159.44,18.933972]
[1749692047837,23.01611091,159.49,159.44,41.95008291]
[1749692048239,32.2681997,159.54,159.44,41.95008291]
[1749692048427,23.01611091,159.52,159.47,23.01611091]
[1749692048628,6.3907,159.57,159.51,23.01611091]
[1749692048860,23.01611091,159.56,159.51,23.01611091]
[1749692049137,23.01611091,159.52,159.46,6.22]
[1749692049347,23.01611091,159.48,159.46,6.22]
[1749692049552,23.01611091,159.49,159.46,6.22]
[1749692049770,23.01611091,159.5,159.46,6.22]
[1749692050060,23.01611091,159.49,159.46,6.22]
[1749692051332,13.83084463,159.49,159.46,6.22]
[1749692052131,13.83084463,159.47,159.46,6.22]
[1749692052855,6.26815515,159.54,159.46,6.22]
[1749692053052,13.83084463,159.49,159.46,6.22]
[1749692053939,13.83084463,159.52,159.47,18.933972]
[1749692054142,13.83084463,159.5,159.47,0.28432314]
[1749692054350,6.26725674,159.56,159.47,0.28432314]
[1749692054676,13.83084463,159.5,159.47,0.28432314]
[1749692055035,13.83084463,159.49,159.47,0.28432314]
[1749692055457,13.83084463,159.49,159.46,6.22]
[1749692057946,13.83084463,159.5,159.46,6.22]
[1749692060572,13.83084463,159.52,159.47,32.76481663]
[1749692060743,13.83084463,159.51,159.47,18.933972]
[1749692061154,32.3907,159.57,159.47,32.76481663]
[1749692061461,13.83084463,159.51,159.47,18.933972]
[1749692061631,13.83084463,159.52,159.47,32.76481663]
[1749692062359,38.65766776,159.57,159.47,32.76481663]
[1749692062360,13.83084463,159.51,159.47,0.28432314]
[1749692062563,13.83084463,159.52,159.47,32.76481663]
[1749692062770,13.83084463,159.51,159.47,18.933972]
[1749692063150,6.3907,159.57,159.49,18.933972]
[1749692063461,13.83084463,159.56,159.51,32.76481663]
[1749692063647,13.83084463,159.55,159.51,18.933972]
[1749692064031,13.83084463,159.55,159.51,32.76481663]
[1749692064236,1.6237,159.6,159.53,0.28432314]
[1749692064467,1.6237,159.6,159.54,13.83084463]
[1749692064672,13.83084463,159.6,159.54,0.28432314]
[1749692064840,13.83084463,159.58,159.54,0.28432314]
[1749692065548,13.83084463,159.59,159.54,14.11516777]
[1749692065738,13.83084463,159.58,159.54,14.11516777]
[1749692065938,13.83084463,159.58,159.54,0.28432314]
[1749692066771,13.83084463,159.55,159.5,26.0]
[1749692066959,13.83084463,159.52,159.5,26.0]
[1749692067162,13.83084463,159.6,159.5,26.0]
[1749692067163,13.83084463,159.53,159.51,0.28432314]
[1749692067461,13.83084463,159.54,159.51,0.28432314]
[1749692068243,6.26605677,159.59,159.5,26.0]
[1749692068447,13.83084463,159.54,159.51,0.28432314]
[1749692068949,13.83084463,159.55,159.51,0.28432314]
[1749692069466,20.09660281,159.6,159.51,0.28432314]
[1749692069773,13.83084463,159.6,159.51,18.933972]
[1749692069977,13.83084463,159.56,159.51,18.933972]
[1749692070167,13.83084463,159.56,159.51,32.76481663]
[1749692070554,6.0832,159.61,159.53,13.83084463]
[1749692070555,13.83084463,159.58,159.53,13.83084463]
[1749692070746,13.83084463,159.57,159.53,13.83084463]
[1749692070946,13.83084463,159.56,159.52,0.28432314]
[1749692071874,13.83084463,159.57,159.52,14.11516777]
[1749692072774,6.0832,159.61,159.54,0.28432314]
[1749692073074,13.83084463,159.58,159.54,0.28432314]
[1749692073260,13.83084463,159.57,159.54,0.28432314]
[1749692076051,13.83084463,159.58,159.53,0.28432314]
[1749692076251,13.83084463,159.57,159.54,0.28432314]
[1749692076753,13.83084463,159.55,159.5,5.76626921]
[1749692077060,13.83084463,159.56,159.51,32.76481663]
[1749692077270,13.83084463,159.58,159.53,14.11516777]
[1749692077460,13.83084463,159.57,159.53,18.933972]
[1749692077649,13.83084463,159.57,159.53,0.28432314]
[1749692077844,13.83084463,159.57,159.53,18.933972]
[1749692078870,13.83084463,159.58,159.53,32.76481663]
[1749692079078,39.83084463,159.6,159.56,0.28432314]
[1749692079988,13.83084463,159.57,159.54,0.28432314]
[1749692080352,13.83084463,159.58,159.54,0.28432314]
[1749692080575,13.83084463,159.57,159.54,0.28432314]
[1749692080753,26.0,159.6,159.54,0.28432314]
[1749692081071,13.83084463,159.57,159.54,0.28432314]
[1749692082695,13.83084463,159.58,159.54,0.28432314]
[1749692082866,26.0,159.6,159.54,0.28432314]
[1749692083180,26.0,159.6,159.54,6.48432314]
[1749692083381,13.83084463,159.58,159.54,6.48432314]
[1749692083850,13.83084463,159.59,159.54,6.2]
[1749692084051,13.83084463,159.58,159.55,0.28432314]
[1749692084253,26.0,159.61,159.55,0.28432314]
[1749692084254,13.83084463,159.57,159.55,0.28432314]
[1749692084981,13.83084463,159.58,159.55,0.28432314]
[1749692085588,13.83084463,159.57,159.55,0.28432314]
[1749692085758,13.83084463,159.58,159.55,0.28432314]
[1749692086788,13.83084463,159.57,159.55,0.28432314]
[1749692087350,13.83084463,159.56,159.54,6.2]
[1749692088964,6.2663104,159.59,159.54,6.2]
[1749692089158,13.83084463,159.55,159.54,6.2]
[1749692092079,39.83084463,159.55,159.54,6.2]
[1749692092971,26.0,159.55,159.54,6.2]
[1749692093174,6.39,159.62,159.55,0.28432314]
[1749692093375,26.0,159.56,159.55,0.28432314]
[1749692093571,13.83084463,159.59,159.55,0.28432314]
[1749692094079,13.83084463,159.6,159.55,19.07613357]
[1749692094285,171.64433175,159.68,159.58,0.28432314]
[1749692094286,6.39,159.66,159.58,0.28432314]
[1749692094597,13.83084463,159.63,159.58,14.11516777]
[1749692094967,39.83084463,159.63,159.58,14.11516777]
[1749692095295,6.39,159.66,159.6,14.11516777]
[1749692095501,1.5198,159.69,159.63,14.11516777]
[1749692095707,1.5198,159.69,159.64,20.31516777]
[1749692095708,13.83084463,159.69,159.64,20.31516777]
[1749692095862,13.83084463,159.67,159.64,6.48432314]
[1749692096066,13.83084463,159.65,159.64,6.2]
[1749692096461,39.83084463,159.68,159.64,6.2]
[1749692096697,13.83084463,159.66,159.64,6.2]
[1749692097002,13.83084463,159.65,159.64,6.2]
[1749692097682,26.0,159.67,159.64,6.2]
[1749692097994,13.83084463,159.65,159.64,6.2]
[1749692099279,23.00896429,159.65,159.64,6.2]
[1749692100888,26.0,159.67,159.64,6.2]
[1749692101197,26.0,159.68,159.64,6.2]
[1749692101392,23.00896429,159.66,159.64,6.2]
[1749692102175,26.0,159.68,159.64,6.48432314]
[1749692102391,23.00896429,159.65,159.64,6.48432314]
[1749692103103,26.0,159.68,159.65,0.28432314]
[1749692104376,23.00896429,159.7,159.65,23.29328743]
[1749692104596,23.00896429,159.7,159.65,24.85358743]
[1749692104810,23.00896429,159.73,159.69,0.28432314]
[1749692105020,6.541,159.75,159.69,23.29328743]
[1749692105178,23.00896429,159.72,159.69,0.28432314]
[1749692106097,23.00896429,159.73,159.69,0.28432314]
[1749692106275,23.00896429,159.72,159.69,0.28432314]
[1749692106479,6.25943808,159.76,159.69,0.28432314]
[1749692106682,23.00896429,159.72,159.69,0.28432314]
[1749692106988,49.00896429,159.73,159.69,0.28432314]
[1749692107586,49.00896429,159.73,159.69,23.29328743]
[1749692107792,6.3581,159.79,159.67,26.72]
[1749692107793,49.00896429,159.75,159.71,23.29328743]
[1749692107995,26.0,159.75,159.71,23.29328743]
[1749692108502,23.00896429,159.77,159.74,0.28432314]
[1749692108674,23.00896429,159.75,159.71,0.14216157]
[1749692108881,23.00896429,159.74,159.71,0.14216157]
[1749692109089,23.00896429,159.75,159.7,23.29328743]
[1749692109981,23.00896429,159.74,159.7,23.29328743]
[1749692110802,26.0,159.76,159.7,23.29328743]
[1749692111095,23.00896429,159.74,159.7,23.29328743]
[1749692111296,23.00896429,159.75,159.7,23.29328743]
[1749692112090,23.00896429,159.71,159.66,18.64964886]
[1749692112400,23.00896429,159.71,159.69,0.28432314]
[1749692112736,26.0,159.73,159.69,0.28432314]
[1749692113005,6.25945125,159.76,159.71,23.29328743]
[1749692113006,49.00896429,159.76,159.71,23.29328743]
[1749692113200,23.00896429,159.76,159.73,0.28432314]
[1749692113381,23.00896429,159.75,159.73,0.28432314]
[1749692113585,49.00896429,159.76,159.73,0.28432314]
[1749692113791,26.0,159.76,159.73,0.28432314]
[1749692114007,26.0,159.75,159.73,0.28432314]
[1749692116196,26.0,159.73,159.72,19.07613357]
[1749692116891,26.0,159.73,159.72,42.08509786]
[1749692118502,26.0,159.73,159.72,19.07613357]
[1749692118700,26.0,159.73,159.72,42.08509786]
[1749692119301,26.0,159.73,159.72,32.859904]
[1749692119510,13.78377043,159.79,159.72,34.368004]
[1749692119698,26.0,159.76,159.75,0.28432314]
[1749692120797,13.78377043,159.77,159.75,0.28432314]
[1749692120994,12.83709889,159.83,159.7,0.14216157]
[1749692120995,13.78377043,159.76,159.7,0.14216157]
[1749692121204,6.5804,159.83,159.72,0.28432314]
[1749692121205,26.0,159.73,159.72,0.28432314]
[1749692121598,26.0,159.74,159.71,26.62]
[1749692121915,13.78377043,159.73,159.72,0.28432314]
[1749692122215,13.78377043,159.73,159.68,108.82957043]
[1749692122216,13.78377043,159.73,159.69,45.26964886]
[1749692122391,13.78377043,159.72,159.69,45.26964886]
[1749692122801,13.78377043,159.72,159.7,0.28432314]
[1749692123117,13.78377043,159.72,159.69,45.26964886]
[1749692123325,13.78377043,159.72,159.7,0.28432314]
[1749692123708,26.0,159.76,159.7,0.28432314]
[1749692123917,13.78377043,159.73,159.7,0.28432314]
[1749692124625,13.78377043,159.73,159.7,0.42648471]
[1749692124803,17.1854183,159.82,159.7,0.42648471]
[1749692124804,26.0,159.71,159.7,0.42648471]
[1749692125124,39.78377043,159.71,159.68,6.16]
[1749692125709,13.78377043,159.7,159.69,0.28432314]
[1749692125907,13.78377043,159.7,159.69,0.14216157]
[1749692126301,13.78377043,159.7,159.69,0.28432314]
[1749692128433,13.78377043,159.7,159.68,6.16]
[1749692128735,6.2602987,159.74,159.68,6.16]
[1749692128736,13.78377043,159.69,159.68,6.16]
[1749692129621,26.0,159.72,159.68,6.16]
[1749692129907,13.78377043,159.69,159.68,6.16]
[1749692131001,26.0,159.66,159.65,0.14216157]
[1749692131319,26.0,159.66,159.64,6.16]
[1749692131320,39.78377043,159.66,159.64,6.16]
[1749692131504,13.78377043,159.68,159.64,6.16]
[1749692131505,13.78377043,159.65,159.64,6.16]
[1749692131710,26.0,159.62,159.61,19.07613357]
[1749692132012,26.0,159.62,159.61,25.23613357]
[1749692132312,26.0,159.62,159.61,6.16]
[1749692132313,13.78377043,159.62,159.61,6.16]
[1749692132635,13.78377043,159.63,159.62,0.28432314]
[1749692133002,13.78377043,159.63,159.62,0.14216157]
[1749692133720,13.78377043,159.63,159.62,0.28432314]
[1749692133921,26.0,159.66,159.62,32.859904]
[1749692134221,26.0,159.64,159.63,0.28432314]
[1749692134933,26.0,159.64,159.63,14.21025514]
[1749692135112,26.0,159.64,159.63,40.83025514]
[1749692135717,26.0,159.65,159.64,18.933972]
[1749692135919,26.0,159.65,159.64,32.71774243]
[1749692136707,26.0,159.71,159.65,0.14216157]
[1749692136909,26.0,159.66,159.65,0.14216157]
[1749692137327,13.78377043,159.67,159.65,0.14216157]
[1749692137534,26.0,159.65,159.64,19.07613357]
[1749692138328,12.27337662,159.74,159.64,19.07613357]
[1749692138329,13.78377043,159.66,159.65,0.28432314]
[1749692138512,13.78377043,159.66,159.65,0.14216157]
[1749692139024,39.78377043,159.66,159.65,0.14216157]
[1749692139232,39.78377043,159.66,159.62,18.933972]
[1749692139233,26.0,159.64,159.63,0.14216157]
[1749692139445,26.0,159.64,159.63,0.28432314]
[1749692139624,26.0,159.64,159.63,32.859904]
[1749692139932,6.0132,159.74,159.64,18.933972]
[1749692139933,26.0,159.65,159.64,18.933972]
[1749692142542,13.78377043,159.69,159.64,32.71774243]
[1749692142779,26.0,159.66,159.65,59.419904]
[1749692143526,6.0132,159.74,159.67,0.14216157]
[1749692143752,13.78377043,159.74,159.7,0.28432314]
[1749692143938,26.0,159.71,159.7,0.28432314]
[1749692145347,26.0,159.69,159.68,26.56]
[1749692145529,26.0,159.69,159.68,26.84432314]
[1749692145733,26.0,159.69,159.68,0.28432314]
[1749692146327,13.78377043,159.72,159.69,0.28432314]
[1749692146525,13.78377043,159.72,159.69,0.14216157]
[1749692146939,26.0,159.73,159.69,0.14216157]
[1749692147140,13.78377043,159.72,159.69,0.14216157]
[1749692148231,26.0,159.75,159.69,0.28432314]
[1749692148434,13.78377043,159.73,159.71,0.28432314]
[1749692148641,13.78377043,159.72,159.71,0.28432314]
[1749692148935,6.1564,159.78,159.71,0.28432314]
[1749692149156,6.1564,159.78,159.73,0.28432314]
[1749692149455,26.0,159.74,159.73,0.28432314]
[1749692149664,13.78377043,159.79,159.74,0.14216157]
[1749692149830,13.78377043,159.79,159.75,0.28432314]
[1749692150030,26.0,159.76,159.75,0.28432314]
[1749692152146,26.0,159.74,159.72,40.32377043]
[1749692152354,26.0,159.74,159.73,0.14216157]
[1749692153437,26.0,159.73,159.72,0.28432314]
[1749692155043,26.0,159.73,159.72,0.42648471]
[1749692159063,22.97457505,159.8,159.72,0.14216157]
[1749692159064,22.97457505,159.74,159.72,0.14216157]
[1749692160636,29.2325311,159.8,159.71,0.42648471]
[1749692160637,22.97457505,159.73,159.71,0.42648471]
[1749692160838,26.0,159.71,159.7,6.1]
[1749692161056,48.97457505,159.71,159.7,6.1]
[1749692161262,71.9491501,159.71,159.7,6.1]
[1749692161638,48.97457505,159.71,159.7,6.1]
[1749692162045,22.97457505,159.71,159.7,6.1]
[1749692162468,48.97457505,159.72,159.7,6.38432314]
[1749692162965,22.97457505,159.71,159.7,6.38432314]
[1749692163744,48.97457505,159.71,159.7,6.1]
[1749692163946,22.97457505,159.71,159.7,6.1]
[1749692164641,45.9491501,159.71,159.7,6.1]
[1749692164859,22.97457505,159.71,159.7,6.1]
[1749692167265,22.97457505,159.71,159.7,6.52648471]
[1749692167769,48.97457505,159.72,159.71,0.28432314]
[1749692169376,26.0,159.72,159.71,0.42648471]
[1749692170867,22.97457505,159.73,159.71,0.42648471]
[1749692171281,12.28253968,159.79,159.7,6.1]
[1749692171282,22.97457505,159.72,159.7,6.1]
[1749692171487,22.97457505,159.71,159.7,6.1]
[1749692171858,22.97457505,159.71,159.7,6.24216157]
[1749692172572,22.97457505,159.71,159.7,6.38432314]
[1749692172960,22.97457505,159.72,159.7,6.38432314]
[1749692173881,6.0243,159.79,159.71,0.42648471]
[1749692174092,26.0,159.76,159.71,0.42648471]
[1749692174271,6.0243,159.79,159.71,0.28432314]
[1749692174272,22.97457505,159.72,159.71,0.28432314]
[1749692174985,22.97457505,159.72,159.71,0.14216157]
[1749692175193,22.97457505,159.72,159.7,6.1]
[1749692175392,13.79607247,159.71,159.7,6.38432314]
[1749692176998,13.79607247,159.71,159.7,6.1]
[1749692179288,23.00050075,159.71,159.7,6.1]
[1749692179679,46.0010015,159.71,159.7,6.1]
[1749692179984,26.0,159.68,159.63,0.42648471]
[1749692180180,26.0,159.68,159.63,0.14216157]
[1749692180375,49.00050075,159.64,159.63,0.14216157]
[1749692180775,49.00050075,159.64,159.63,0.42648471]
[1749692181975,49.00050075,159.64,159.63,0.28432314]
[1749692182182,23.00050075,159.64,159.63,0.28432314]
[1749692186917,6.1891,159.72,159.63,0.42648471]
[1749692187116,6.1891,159.72,159.63,19.07613357]
[1749692187117,23.00050075,159.67,159.63,19.07613357]
[1749692187421,26.0,159.65,159.64,19.07613357]
[1749692187797,23.00050075,159.69,159.66,0.14216157]
[1749692188126,26.0,159.67,159.66,0.14216157]
[1749692188923,23.00050075,159.68,159.66,0.14216157]
[1749692189101,23.00050075,159.67,159.65,0.28432314]
[1749692189302,23.00050075,159.66,159.65,0.28432314]
[1749692189518,26.0,159.64,159.63,26.36]
[1749692189725,49.00050075,159.64,159.62,6.0]
[1749692190025,49.00050075,159.64,159.63,0.42648471]
[1749692190203,23.00050075,159.65,159.63,0.42648471]
[1749692190620,23.00050075,159.67,159.63,42.07663432]
[1749692190793,49.00050075,159.69,159.65,18.933972]
[1749692191124,6.6425,159.77,159.7,0.28432314]
[1749692191286,6.6425,159.77,159.7,23.42698546]
[1749692191287,26.0,159.72,159.7,23.42698546]
[1749692191488,26.0,159.72,159.7,0.42648471]
[1749692191694,6.6425,159.77,159.7,0.42648471]
[1749692191695,23.00050075,159.75,159.7,0.42648471]
[1749692191892,26.0,159.71,159.7,0.42648471]
[1749692192327,23.00050075,159.72,159.7,0.28432314]
[1749692192630,23.00050075,159.71,159.69,0.28432314]
[1749692192832,26.0,159.68,159.67,0.14216157]
[1749692193002,49.00050075,159.68,159.67,0.14216157]
[1749692193402,49.00050075,159.68,159.66,0.28432314]
[1749692193794,49.00050075,159.68,159.63,26.36]
[1749692193795,26.0,159.64,159.63,26.36]
[1749692193998,26.0,159.64,159.63,45.43613357]
[1749692194522,26.0,159.64,159.63,19.07613357]
[1749692194732,26.0,159.65,159.64,0.14216157]
[1749692195411,26.0,159.65,159.64,42.07663432]
[1749692195934,26.0,159.65,159.64,19.07613357]
[1749692196498,26.0,159.65,159.64,42.07663432]
[1749692196809,26.0,159.66,159.64,19.07613357]
[1749692196998,26.0,159.65,159.64,19.07613357]
[1749692199307,26.0,159.65,159.64,0.14216157]
[1749692200007,26.0,159.67,159.66,0.14216157]
[1749692202906,23.00050075,159.73,159.66,42.07663432]
[1749692203102,23.00050075,159.73,159.69,0.28432314]
[1749692203323,23.00050075,159.73,159.69,0.42648471]
[1749692203505,26.0,159.7,159.69,0.42648471]
[1749692203906,26.0,159.7,159.69,6.34648471]
[1749692204326,26.0,159.74,159.69,6.34648471]
[1749692204629,23.00050075,159.73,159.69,6.34648471]
[1749692205936,23.00050075,159.72,159.69,6.34648471]
[1749692206238,23.00050075,159.7,159.69,5.92]
[1749692206763,52.3792015,159.7,159.69,5.92]
[1749692207041,26.0,159.67,159.62,5.92]
[1749692207244,23.00050075,159.63,159.62,5.92]
[1749692209140,23.00050075,159.63,159.54,5.92]
[1749692209141,26.0,159.59,159.54,5.92]
[1749692209344,23.00050075,159.55,159.54,5.92]
[1749692210046,23.00050075,159.55,159.54,6.34648471]
[1749692210433,26.0,159.59,159.55,0.42648471]
[1749692210434,23.00050075,159.59,159.55,0.42648471]
[1749692211642,23.00050075,159.57,159.55,0.42648471]
[1749692212023,23.00050075,159.58,159.55,0.42648471]
[1749692212425,6.4708,159.62,159.55,0.42648471]
[1749692212426,23.00050075,159.56,159.55,0.42648471]
[1749692213047,23.00050075,159.57,159.55,0.42648471]
[1749692213550,23.00050075,159.56,159.55,0.28432314]
[1749692213974,23.00050075,159.56,159.52,43.24]
[1749692214132,23.00050075,159.53,159.49,5.92]
[1749692214330,49.00050075,159.6,159.49,5.92]
[1749692214331,23.00050075,159.5,159.49,5.92]
[1749692214545,23.00050075,159.5,159.49,31.92]
[1749692214759,23.00050075,159.51,159.5,0.28432314]
[1749692215254,23.00050075,159.6,159.53,0.42648471]
[1749692215436,23.00050075,159.57,159.54,0.42648471]
[1749692216044,23.00050075,159.58,159.54,26.42648471]
[1749692217254,23.00050075,159.58,159.54,0.42648471]
[1749692217553,23.00050075,159.59,159.54,49.80698546]
[1749692217759,23.00050075,159.59,159.54,26.80648471]
[1749692217934,23.00050075,159.59,159.54,49.80698546]
[1749692220444,23.00050075,159.59,159.54,26.80648471]
[1749692220759,23.00050075,159.59,159.54,49.80698546]
[1749692222056,23.00050075,159.61,159.57,0.42648471]
[1749692222237,6.5374,159.66,159.59,0.14216157]
[1749692222437,23.00050075,159.62,159.6,0.28432314]
[1749692222749,23.00050075,159.61,159.6,0.28432314]
[1749692223163,23.00050075,159.62,159.6,0.28432314]
[1749692223746,6.5374,159.66,159.6,0.28432314]
[1749692224060,23.00050075,159.62,159.6,0.28432314]
[1749692224436,6.5374,159.66,159.6,0.28432314]
[1749692224640,23.00050075,159.62,159.6,0.28432314]
[1749692226064,23.00050075,159.61,159.59,5.92]